fUST/lending_fUST_20250613
["ID","MTS","AMOUNT","RATE_DAILY","PERIOD"]
[365613752,1749805854659,-2000.0,0.00024616,2]
[365613755,1749805854669,-2000.0,0.00024616,2]
[365613764,1749805854756,-229.0,0.0002462,2]
[365613766,1749805854766,-1143.85658911,0.00024624,11]
[365613768,1749805854776,-151.0,0.00024644,7]
[365613770,1749805854785,-151.0,0.00024644,7]
[365613772,1749805854796,-107051.95360062,0.0002465,2]
[365613774,1749805854805,-309.62461105,0.0002465,30]
[365613777,1749805854815,-300.02290478,0.0002465,2]
[365613779,1749805854825,-27245.26584177,0.0002465,7]
[365613781,1749805854835,-8035.94711536,0.0002465,2]
[365613782,1749805854844,-516.744631,0.0002465,7]
[365613784,1749805854854,-151.0,0.0002465,7]
[365613786,1749805854863,-151.0,0.0002465,7]
[365613788,1749805854872,-189.366701,0.00024656,7]
[365613790,1749805854881,-189.366701,0.00024656,7]
[365613792,1749805854891,-151.0,0.00024656,7]
[365613794,1749805854901,-162.800137,0.00024656,7]
[365613796,1749805854911,-151.0,0.00024657,7]
[365613798,1749805854921,-227.427426,0.00024657,7]
[365613800,1749805854930,-151.0,0.00024657,7]
[365613802,1749805854940,-227.427426,0.00024657,7]
[365613804,1749805854950,-151.0,0.00024657,7]
[365613806,1749805854959,-616.93,0.00024657,2]
[365613808,1749805854969,-1456.25,0.00024657,4]
[365613810,1749805854978,-686.66,0.00024657,4]
[365613812,1749805854988,-460.0,0.00024657,4]
[365613814,1749805854998,-747.53,0.00024657,4]
[365613816,1749805855008,-1041.86,0.00024657,4]
[365613818,1749805855017,-654.65,0.00024657,4]
[365613820,1749805855027,-460.0,0.00024657,4]
[365613822,1749805855036,-465.24,0.00024657,4]
[365613824,1749805855045,-553.89,0.00024657,4]
[365613826,1749805855055,-1290.11,0.00024657,4]
[365613828,1749805855064,-1528.23,0.00024657,4]
[365613830,1749805855073,-1484.13,0.00024657,4]
[365613832,1749805855083,-1050.94,0.00024657,4]
[365613834,1749805855092,-1285.01,0.00024657,4]
[365613836,1749805855102,-970.44,0.00024657,4]
[365613838,1749805855111,-460.0,0.00024657,4]
[365613840,1749805855120,-936.65,0.00024657,4]
[365613842,1749805855130,-200.0,0.00024658,2]
[365613844,1749805855139,-200.0,0.00024658,15]
[365613846,1749805855149,-380.0,0.00024658,2]
[365613848,1749805855159,-744.0,0.00024658,2]
[365613850,1749805855167,-200.0,0.00024666,120]
[365613852,1749805855176,-756.85,0.0002467,4]
[365613854,1749805855186,-250000.0,0.0002468,2]
[365613856,1749805855195,-151.0,0.0002468,7]
[365613858,1749805855204,-151.0,0.0002468,7]
[365613860,1749805855213,-151.0,0.0002468,7]
[365613862,1749805855222,-309.386032,0.0002468,7]
[365613864,1749805855232,-309.386032,0.0002468,7]
[365613866,1749805855242,-151.0,0.0002468,7]
[365613868,1749805855251,-516.744631,0.0002468,7]
[365613870,1749805855261,-151.0,0.0002468,7]
[365613872,1749805855272,-151.0,0.0002468,7]
[365613874,1749805855282,-189.366701,0.0002468,7]
[365613876,1749805855291,-189.366701,0.0002468,7]
[365613878,1749805855300,-151.0,0.0002468,7]
[365613880,1749805855309,-1593.68432,0.0002468,2]
[365613882,1749805855318,-162.800137,0.0002468,7]
[365613884,1749805855328,-227.427426,0.0002468,7]
[365613886,1749805855337,-151.0,0.0002468,7]
[365613888,1749805855346,-227.427426,0.0002468,7]
[365613890,1749805855355,-151.0,0.0002468,7]
[365613892,1749805855365,-744.0,0.00024685,2]
[365613894,1749805855374,-882.0,0.000247,60]
[365613896,1749805855383,-2000.0,0.000247,30]
[365613898,1749805855393,-2000.0,0.000247,30]
[365613900,1749805855402,-366.0,0.000247,14]
[365613902,1749805855412,-4587.67,0.000247,7]
[365613904,1749805855421,-1006.67,0.000247,60]
[365613905,1749805855430,-200.0,0.00024708,120]
[365613907,1749805855441,-744.0,0.00024713,2]
[365613909,1749805855451,-626.10425955,0.00024716,120]
[365613911,1749805855460,-744.0,0.0002474,2]
[365613913,1749805855470,-1143.85658911,0.00024762,11]
[365613915,1749805855479,-744.0,0.00024768,2]
[365613917,1749805855489,-12877.456628,0.00024774,2]
[365613919,1749805855498,-196.0,0.00024776,2]
[365613921,1749805855507,-200.0,0.00024777,120]
[365613924,1749805855517,-823.0,0.00024779,2]
[365613926,1749805855526,-744.0,0.00024795,2]
[365613928,1749805855535,-69834.34218962,0.000248,120]
[365613930,1749805855545,-2000.0,0.000248,120]
[365613932,1749805855554,-52589.8434694,0.000248,2]
[365613940,1749805855629,-760.78368721,0.000248,2]
[365613943,1749805855642,-10025.0,0.000248,2]
[365613961,1749805855807,-630.2744541,0.00021368,2]
[365613963,1749805855816,-630.2744541,0.00021368,2]
[365613965,1749805855826,-630.2744541,0.00021368,2]
[365613967,1749805855834,-630.2744541,0.00021368,2]
[365613969,1749805855843,-630.2744541,0.00021368,2]
[365613971,1749805855853,-630.2744541,0.00021368,2]
[365613973,1749805855862,-500.0,0.00022466,2]
[365613975,1749805855871,-500.0,0.00022466,2]
[365613977,1749805855881,-500.0,0.00022466,2]
[365613979,1749805855890,-500.0,0.00022466,2]
[365613981,1749805855899,-500.0,0.00022466,2]
[365613983,1749805855910,-470.0,0.00022466,2]
[365613985,1749805855919,-1285.43105563,0.000248,2]
[365613987,1749805855930,-9751.71010818,0.000248,2]
[365614277,1749805858733,500.0,0.000233,120]
[365614367,1749805859576,500.0,0.000233,120]
[365614447,1749805860336,500.0,0.000233,120]
[365614524,1749805861117,500.0,0.000233,120]
[365614595,1749805861920,500.0,0.000233,120]
[365614673,1749805862689,500.0,0.000233,120]
[365614692,1749805863476,500.0,0.000233,120]
[365614698,1749805864704,500.0,0.000233,120]
[365614775,1749805865499,500.0,0.000233,120]
[365614844,1749805866361,500.0,0.000233,120]
[365614934,1749805867394,500.0,0.000233,120]
[365615010,1749805868191,500.0,0.000233,120]
[365615055,1749805869009,500.0,0.000233,120]
[365615112,1749805869822,500.0,0.000233,120]
[365615196,1749805870633,500.0,0.000233,120]
[365615213,1749805870787,500.0,0.00010959,30]
[365615264,1749805871242,500.0,0.00010959,30]
[365615285,1749805871443,500.0,0.000233,120]
[365615300,1749805871701,500.0,0.00010959,30]
[365615302,1749805872169,224.66716219,0.00010959,30]
[365615303,1749805872197,212.28321741,0.00010959,30]
[365615371,1749805873140,4118.828,0.00024944,60]
[365615413,1749805873552,500.0,0.000233,120]
[365615491,1749805874335,500.0,0.000233,120]
[365615563,1749805875117,500.0,0.000233,120]
[365615657,1749805876012,500.0,0.000233,120]
[365615693,1749805876685,500.0,0.000233,120]
[365615694,1749805877486,500.0,0.000233,120]
[365615707,1749805878277,500.0,0.000233,120]
[365615708,1749805879054,500.0,0.000233,120]
[365615709,1749805879820,500.0,0.000233,120]
[365615710,1749805880396,-460.0,0.00021095,4]
[365615711,1749805880598,500.0,0.000233,120]
[365615712,1749805882117,500.0,0.000233,120]
[365615713,1749805882899,500.0,0.000233,120]
[365615714,1749805883723,500.0,0.000233,120]
[365615716,1749805884481,500.0,0.000233,120]
[365615717,1749805885278,500.0,0.000233,120]
[365615718,1749805886343,500.0,0.000233,120]
[365615719,1749805887141,500.0,0.000233,120]
[365615720,1749805887924,500.0,0.000233,120]
[365615721,1749805889135,500.0,0.000233,120]
[365615722,1749805889921,500.0,0.000233,120]
[365615723,1749805890692,500.0,0.000233,120]
[365615724,1749805891518,500.0,0.000233,120]
[365615725,1749805891628,200.0,0.00023763,120]
[365615726,1749805892319,500.0,0.000233,120]
[365615727,1749805893162,500.0,0.000233,120]
[365615728,1749805893361,-208.217645,0.00020544,2]
[365615729,1749805894389,500.0,0.000233,120]
[365615730,1749805895164,500.0,0.000233,120]
[365615731,1749805895354,208.217645,0.00020544,64]
[365615732,1749805895550,208.217645,0.00020544,70]
[365615733,1749805895747,208.217645,0.00020544,76]
[365615734,1749805895938,500.0,0.000233,120]
[365615735,1749805895970,208.217645,0.00020544,82]
[365615736,1749805896146,208.217645,0.00020544,88]
[365615737,1749805896408,208.217645,0.00020544,95]
[365615738,1749805896724,500.0,0.000233,120]
[365615739,1749805896756,208.217645,0.00020544,101]
[365615740,1749805896926,208.217645,0.00020544,107]
[365615741,1749805897345,208.217645,0.00020544,113]
[365615742,1749805897512,500.0,0.000233,120]
[365615743,1749805897561,208.217645,0.00020544,120]
[365615744,1749805897699,-208.217645,0.00020544,8]
[365615745,1749805897729,-48.14812449,0.00020544,14]
[365615746,1749805898311,500.0,0.000233,120]
[365615747,1749805899111,500.0,0.000233,120]
[365615748,1749805899902,500.0,0.000233,120]
[365615749,1749805901429,500.0,0.000233,120]
[365615750,1749805902247,500.0,0.000233,120]
[365615751,1749805903035,500.0,0.000233,120]
[365615752,1749805903795,500.0,0.000233,120]
[365615753,1749805904563,500.0,0.000233,120]
[365615754,1749805905335,500.0,0.000233,120]
[365615756,1749805906298,500.0,0.000233,120]
[365615757,1749805906951,500.0,0.000233,120]
[365615758,1749805907646,500.0,0.000233,120]
[365615759,1749805908423,500.0,0.000233,120]
[365615760,1749805909308,500.0,0.000233,120]
[365615761,1749805910087,500.0,0.000233,120]
[365615762,1749805910878,500.0,0.000233,120]
[365615763,1749805911657,500.0,0.000233,120]
[365615764,1749805912427,500.0,0.000233,120]
[365615765,1749805913217,500.0,0.000233,120]
[365615766,1749805913992,500.0,0.000233,120]
[365615767,1749805914769,500.0,0.000233,120]
[365615768,1749805915565,500.0,0.000233,120]
[365615769,1749805916336,500.0,0.000233,120]
[365615771,1749805917475,500.0,0.000233,120]
[365615772,1749805918254,500.0,0.000233,120]
[365615773,1749805919036,500.0,0.000233,120]
[365615774,1749805919692,238.454466,0.00013699,2]
[365615775,1749805919803,435.23,0.000233,120]
[365615779,1749805974423,214.51054349,0.00013699,2]
[365615780,1749805985588,500.0,0.000238,120]
[365615781,1749805986368,500.0,0.000238,120]
[365615782,1749805987370,500.0,0.000238,120]
[365615784,1749806011832,200.0,0.00023945,120]
[365615786,1749806071943,200.0,0.00023637,120]
[365615787,1749806103161,1252.71337091,0.00022,120]
[365615788,1749806103495,1536.0,0.00023,120]
[365615789,1749806103528,1657.0,0.0002,120]
[365615790,1749806103565,538.0,0.0002,120]
[365615791,1749806103600,556.6,0.00023,120]
[365615792,1749806131297,200.0,0.00023979,120]
[365615793,1749806191592,200.0,0.00023945,120]
[365615796,1749806251174,200.0,0.0002427,120]
[365615818,1749806403162,166.25921587,0.0002,120]
[365615820,1749806431643,200.0,0.00023778,120]
[365615824,1749806551961,200.0,0.00023627,120]
[365615825,1749806611882,200.0,0.0002463,120]
[365615826,1749806731087,200.0,0.00023685,120]
[365615829,1749806813354,4199.5,0.00024982,120]
[365615854,1749806871919,163.82446695,0.000246,120]
[365615856,1749806892380,188616.21244813,0.00024982,120]
[365615857,1749806896328,2000.0,0.00018606,120]
[365615858,1749806901429,188.0,0.0002,120]
[365615860,1749806907389,4233.42613009,0.00024982,120]
[365615861,1749806911325,200.0,0.00023988,120]
[365615862,1749806915735,121124.15166183,0.0002,120]
[365615863,1749806916299,26095.8421523,0.0002,120]
[365615864,1749806918577,3950.34925989,0.00024108,120]
[365615866,1749806923347,112642.50710158,0.000245,120]
[365615867,1749806923763,33380.05253442,0.0002,120]
[365615868,1749806926682,1266.92514201,0.00024658,120]
[365615869,1749806927170,1009.36870409,0.0002,120]
[365615870,1749806928747,4924.61149382,0.00024982,120]
[365615879,1749806970355,226.531742,0.00013699,2]
[365615880,1749806971654,2436.07807563,0.0001805,6]
[365615882,1749806980984,455.2236023,0.0001805,6]
[365615933,1749807032027,-776.3742453,0.00018606,2]
[365615934,1749807032037,-238.94715079,0.00018935,2]
[365615936,1749807032047,-160.50970012,0.00018963,2]
[365615938,1749807032056,-260.4850695,0.00019397,2]
[365615940,1749807032066,-203.00870284,0.00019449,2]
[365615942,1749807032075,-300.0,0.00019519,2]
[365615944,1749807032086,-300.0,0.00019519,2]
[365615947,1749807032095,-1200.0,0.00019519,2]
[365615950,1749807032105,-24900.0,0.0001952,2]
[365615953,1749807032114,-168.2456441,0.00019564,2]
[365615957,1749807032125,-3696.73950111,0.00019564,2]
[365615959,1749807032134,-183.781194,0.00019653,2]
[365615961,1749807032144,-207.52487211,0.00019784,2]
[365615963,1749807032153,-1997.84289726,0.0002,2]
[365615965,1749807032162,-160.0,0.00020005,2]
[365615967,1749807032171,-226.531742,0.00020187,2]
[365615969,1749807032181,-203.00870279,0.00020225,2]
[365615971,1749807032190,-1390.77,0.00020264,2]
[365615973,1749807032199,-302.6,0.00020485,2]
[365615975,1749807032209,-160.06952051,0.00020544,14]
[365615977,1749807032218,-208.217645,0.00020544,20]
[365615979,1749807032228,-208.217645,0.00020544,26]
[365615981,1749807032238,-208.217645,0.00020544,33]
[365615983,1749807032247,-21.14389897,0.00020544,39]
[365615985,1749807032259,-187.07374603,0.00020544,39]
[365615987,1749807032268,-208.217645,0.00020544,45]
[365615989,1749807032278,-208.217645,0.00020544,51]
[365615991,1749807032288,-208.217645,0.00020544,57]
[365615993,1749807032297,-202.17331897,0.000209,4]
[365615995,1749807032309,-13.71733942,0.000209,4]
[365615997,1749807032318,-500.0,0.00020964,2]
[365615999,1749807032327,-203.00870279,0.00021001,2]
[365616001,1749807032339,-639.36335051,0.00021005,2]
[365616003,1749807032351,-500.0,0.00021094,2]
[365616005,1749807032360,-500.0,0.00021094,2]
[365616007,1749807032369,-266.77676614,0.00021094,2]
[365616009,1749807032379,-460.0,0.00021095,4]
[365616012,1749807032389,-460.0,0.00021095,4]
[365616014,1749807032399,-362.56429219,0.00021095,4]
[365616015,1749807032409,-460.0,0.00021095,4]
[365616018,1749807032419,-460.0,0.00021095,4]
[365616019,1749807032428,-460.0,0.00021095,4]
[365616021,1749807032437,-338.55806325,0.00021095,4]
[365616023,1749807032447,-460.0,0.00021095,4]
[365616025,1749807032456,-460.0,0.00021095,4]
[365616027,1749807032466,-460.0,0.00021095,4]
[365616030,1749807032475,-343.48446535,0.00021095,4]
[365616032,1749807032485,-471.6,0.00021095,2]
[365616034,1749807032495,-158.61555264,0.00021095,4]
[365616036,1749807032504,-460.0,0.00021095,4]
[365616037,1749807032513,-460.0,0.00021095,4]
[365616039,1749807032523,-500.0,0.00021095,2]
[365616042,1749807032533,-476.2646036,0.00021095,2]
[365616044,1749807032542,-226.04686411,0.00021095,4]
[365616046,1749807032554,-233.95313589,0.00021095,4]
[365616048,1749807032565,-460.0,0.00021095,4]
[365616050,1749807032574,-460.0,0.00021095,4]
[365616052,1749807032586,-460.0,0.00021095,4]
[365616054,1749807032596,-380.0,0.00021095,4]
[365616056,1749807032608,-460.0,0.00021095,4]
[365616058,1749807032618,-657.38,0.00021095,4]
[365616060,1749807032627,-380.0,0.00021095,4]
[365616062,1749807032636,-772.91,0.00021095,4]
[365616064,1749807032647,-380.0,0.00021095,4]
[365616066,1749807032656,-460.0,0.00021095,4]
[365616068,1749807032665,-500.0,0.00021095,4]
[365616070,1749807032675,-460.0,0.00021095,4]
[365616071,1749807032685,-460.0,0.00021095,4]
[365616074,1749807032695,-592.42,0.00021095,4]
[365616076,1749807032705,-460.0,0.00021095,4]
[365616078,1749807032714,-564.37,0.00021095,4]
[365616079,1749807032723,-460.0,0.00021095,4]
[365616081,1749807032732,-460.0,0.00021095,4]
[365616083,1749807032742,-460.0,0.00021095,4]
[365616085,1749807032752,-460.0,0.00021095,4]
[365616087,1749807032761,-460.0,0.00021095,4]
[365616089,1749807032771,-460.0,0.00021095,4]
[365616091,1749807032780,-460.0,0.00021095,4]
[365616093,1749807032790,-460.0,0.00021095,4]
[365616096,1749807032800,-460.0,0.00021095,4]
[365616098,1749807032809,-460.0,0.00021095,4]
[365616100,1749807032818,-250.0,0.00021095,4]
[365616102,1749807032828,-460.0,0.00021095,4]
[365616103,1749807032839,-380.0,0.00021095,4]
[365616105,1749807032848,-380.0,0.00021095,4]
[365616107,1749807032858,-700.44,0.00021095,4]
[365616109,1749807032867,-460.0,0.00021095,4]
[365616111,1749807032876,-460.0,0.00021095,4]
[365616114,1749807032886,-656.3,0.00021095,4]
[365616115,1749807032895,-752.26,0.00021095,4]
[365616117,1749807032905,-460.0,0.00021095,4]
[365616119,1749807032914,-460.0,0.00021095,4]
[365616121,1749807032924,-460.0,0.00021095,4]
[365616123,1749807032933,-460.0,0.00021095,4]
[365616126,1749807032942,-365.17021575,0.00021095,4]
[365616127,1749807032952,-460.0,0.00021095,4]
[365616129,1749807032962,-460.0,0.00021095,4]
[365616132,1749807032971,-460.0,0.00021095,4]
[365616133,1749807032980,-460.0,0.00021095,4]
[365616136,1749807032991,-696.88,0.00021095,4]
[365616138,1749807033001,-460.0,0.00021095,4]
[365616139,1749807033010,-460.0,0.00021095,4]
[365616141,1749807033020,-750.33,0.00021095,4]
[365616143,1749807033029,-487.19,0.00021095,4]
[365616145,1749807033039,-2781.54,0.00021229,2]
[365616147,1749807033049,-215.89065836,0.00021264,4]
[365616149,1749807033058,-420.0,0.00021265,2]
[365616151,1749807033068,-420.0,0.00021265,2]
[365616153,1749807033078,-1718.48,0.00021359,10]
[365616155,1749807033090,-2683.13,0.00021359,10]
[365616157,1749807033100,-1560.68099,0.00021359,10]
[365616160,1749807033113,-675.25901,0.00021359,10]
[365616162,1749807033123,-684.0,0.00021367,2]
[365616164,1749807033132,-439.4364531,0.00021368,4]
[365616166,1749807033142,-308.25923305,0.00021369,4]
[365616168,1749807033152,-460.0,0.00021369,4]
[365616170,1749807033163,-460.0,0.00021369,4]
[365616172,1749807033173,-460.0,0.00021369,4]
[365616174,1749807033182,-460.0,0.00021369,4]
[365616176,1749807033192,-476.66332502,0.00021369,4]
[365616178,1749807033202,-471.6,0.00021369,2]
[365616180,1749807033212,-460.0,0.00021369,4]
[365616182,1749807033222,-460.0,0.00021369,4]
[365616184,1749807033232,-460.0,0.00021369,4]
[365616186,1749807033242,-302.50127694,0.00021369,4]
[365616188,1749807033255,-176.50368055,0.00021369,4]
[365616190,1749807033265,-460.0,0.00021369,4]
[365616192,1749807033275,-373.15622433,0.00021369,4]
[365616256,1749807038101,-284.22377567,0.00021369,4]
[365616257,1749807038111,-772.91,0.00021369,4]
[365616258,1749807038120,-460.0,0.00021369,4]
[365616259,1749807038129,-460.0,0.00021369,4]
[365616260,1749807038139,-592.42,0.00021369,4]
[365616263,1749807038150,-460.0,0.00021369,4]
[365616265,1749807038160,-564.37,0.00021369,4]
[365616267,1749807038169,-460.0,0.00021369,4]
[365616269,1749807038179,-460.0,0.00021369,4]
[365616271,1749807038188,-383.94,0.00021369,4]
[365616273,1749807038198,-460.0,0.00021369,4]
[365616275,1749807038207,-460.0,0.00021369,4]
[365616277,1749807038216,-460.0,0.00021369,4]
[365616279,1749807038225,-460.0,0.00021369,4]
[365616281,1749807038234,-460.0,0.00021369,4]
[365616283,1749807038244,-460.0,0.00021369,4]
[365616284,1749807038253,-566.6,0.00021369,4]
[365616286,1749807038263,-700.44,0.00021369,4]
[365616289,1749807038272,-460.0,0.00021369,4]
[365616291,1749807038283,-612.47382387,0.00021369,4]
[365616296,1749807038324,-43.82617613,0.00021369,4]
[365616298,1749807038337,-752.26,0.00021369,4]
[365616300,1749807038347,-380.0,0.00021369,4]
[365616302,1749807038356,-460.0,0.00021369,4]
[365616304,1749807038365,-460.0,0.00021369,4]
[365616306,1749807038374,-460.0,0.00021369,4]
[365616308,1749807038384,-460.0,0.00021369,4]
[365616310,1749807038394,-460.0,0.00021369,4]
[365616312,1749807038403,-460.0,0.00021369,4]
[365616314,1749807038412,-696.88,0.00021369,4]
[365616316,1749807038421,-460.0,0.00021369,4]
[365616318,1749807038430,-460.0,0.00021369,4]
[365616320,1749807038440,-750.33,0.00021369,4]
[365616322,1749807038449,-487.19,0.00021369,4]
[365616324,1749807038459,-500.0,0.000214,2]
[365616326,1749807038468,-500.0,0.00021504,2]
[365616328,1749807038477,-500.0,0.00021629,2]
[365616330,1749807038487,-430.0,0.00021643,4]
[365616332,1749807038496,-460.0,0.00021643,4]
[365616334,1749807038506,-360.0,0.00021643,4]
[365616336,1749807038515,-471.6,0.00021643,2]
[365616338,1749807038524,-460.0,0.00021643,4]
[365616340,1749807038534,-460.0,0.00021643,4]
[365616342,1749807038543,-460.0,0.00021643,4]
[365616344,1749807038552,-460.0,0.00021643,4]
[365616346,1749807038561,-657.38,0.00021643,4]
[365616348,1749807038571,-772.91,0.00021643,4]
[365616350,1749807038580,-460.0,0.00021643,4]
[365616352,1749807038590,-460.0,0.00021643,4]
[365616354,1749807038600,-592.42,0.00021643,4]
[365616356,1749807038614,-460.0,0.00021643,4]
[365616358,1749807038623,-564.37,0.00021643,4]
[365616360,1749807038632,-460.0,0.00021643,4]
[365616362,1749807038642,-460.0,0.00021643,4]
[365616364,1749807038653,-282.66,0.00021643,4]
[365616366,1749807038663,-475.78686244,0.00021643,4]
[365616368,1749807038672,-460.0,0.00021643,4]
[365616370,1749807038682,-460.0,0.00021643,4]
[365616372,1749807038692,-460.0,0.00021643,4]
[365616374,1749807038701,-460.0,0.00021643,4]
[365616377,1749807038711,-700.44,0.00021643,4]
[365616378,1749807038720,-460.0,0.00021643,4]
[365616379,1749807038730,-656.3,0.00021643,4]
[365616380,1749807038739,-752.26,0.00021643,4]
[365616381,1749807038748,-178.991,0.00021643,4]
[365616382,1749807038758,-460.0,0.00021643,4]
[365616383,1749807038767,-460.0,0.00021643,4]
[365616384,1749807038777,-460.0,0.00021643,4]
[365616386,1749807038786,-460.0,0.00021643,4]
[365616388,1749807038796,-696.88,0.00021643,4]
[365616390,1749807038805,-460.0,0.00021643,4]
[365616392,1749807038815,-460.0,0.00021643,4]
[365616393,1749807038824,-750.33,0.00021643,4]
[365616394,1749807038834,-487.19,0.00021643,4]
[365616395,1749807038844,-500.0,0.0002165,2]
[365616396,1749807038853,-500.0,0.00021735,2]
[365616397,1749807038863,-203.00870279,0.00021777,2]
[365616398,1749807038872,-425.73823075,0.00021817,2]
[365616399,1749807038881,-462.021599,0.00021881,2]
[365616400,1749807038892,-200.0,0.00021917,2]
[365616401,1749807038902,-460.0,0.00021917,4]
[365616402,1749807038911,-500.0,0.00021917,2]
[365616403,1749807038921,-500.0,0.00021917,2]
[365616404,1749807038930,-502.37999816,0.00021917,2]
[365616405,1749807038939,-471.6,0.00021917,2]
[365616406,1749807038948,-460.0,0.00021917,4]
[365616407,1749807038958,-220.36224083,0.00021917,4]
[365616408,1749807038967,-460.0,0.00021917,4]
[365616409,1749807038976,-657.38,0.00021917,4]
[365616410,1749807038986,-772.91,0.00021917,4]
[365616411,1749807038996,-460.0,0.00021917,4]
[365616412,1749807039005,-460.0,0.00021917,4]
[365616413,1749807039015,-592.42,0.00021917,4]
[365616414,1749807039025,-460.0,0.00021917,4]
[365616415,1749807039035,-564.37,0.00021917,4]
[365616416,1749807039044,-460.0,0.00021917,4]
[365616417,1749807039053,-460.0,0.00021917,4]
[365616418,1749807039062,-460.0,0.00021917,4]
[365616419,1749807039072,-460.0,0.00021917,4]
[365616420,1749807039082,-460.0,0.00021917,4]
[365616421,1749807039095,-700.44,0.00021917,4]
[365616422,1749807039104,-460.0,0.00021917,4]
[365616423,1749807039114,-656.3,0.00021917,4]
[365616424,1749807039124,-752.26,0.00021917,4]
[365616425,1749807039133,-261.54184703,0.00021917,4]
[365616426,1749807039143,-460.0,0.00021917,4]
[365616427,1749807039154,-460.0,0.00021917,4]
[365616428,1749807039163,-460.0,0.00021917,4]
[365616429,1749807039174,-696.88,0.00021917,4]
[365616430,1749807039183,-460.0,0.00021917,4]
[365616431,1749807039193,-460.0,0.00021917,4]
[365616432,1749807039203,-750.33,0.00021917,4]
[365616433,1749807039216,-500.0,0.00021917,4]
[365616434,1749807039225,-500.0,0.00021917,4]
[365616435,1749807039236,-500.0,0.00021917,4]
[365616436,1749807039246,-508.85477898,0.00021917,4]
[365616437,1749807039256,-487.19,0.00021917,4]
[365616438,1749807039266,-325.5497674,0.00021918,7]
[365616439,1749807039275,-7489.41160759,0.0002199,2]
[365616440,1749807039285,-464.47591941,0.00021999,2]
[365616441,1749807039295,-678.23502845,0.00021999,2]
[365616442,1749807039306,-678.23502845,0.00021999,2]
[365616443,1749807039315,-678.23502845,0.00021999,2]
[365616444,1749807039325,-678.23502845,0.00021999,2]
[365616445,1749807039337,-678.23502845,0.00021999,2]
[365616446,1749807039348,-678.23502845,0.00021999,2]
[365616447,1749807039359,-678.23502845,0.00021999,2]
[365616448,1749807039369,-678.23502845,0.00021999,2]
[365616449,1749807039379,-678.23502845,0.00021999,2]
[365616450,1749807039393,-678.23502845,0.00021999,2]
[365616451,1749807039403,-678.23502845,0.00021999,2]
[365616452,1749807039414,-678.23502845,0.00021999,2]
[365616453,1749807039424,-678.23502845,0.00021999,2]
[365616454,1749807039434,-678.23502845,0.00021999,2]
[365616455,1749807039444,-678.23502845,0.00021999,2]
[365616456,1749807039454,-678.23502845,0.00021999,2]
[365616457,1749807039465,-678.23502845,0.00021999,2]
[365616458,1749807039474,-678.23502845,0.00021999,2]